[Event "Titled Tuesday Blitz January 17 Early 2023"]
[White "Ordekalog"]
[Black "Sanchez, Robert"]
[BlackFideId "2034360"]
[WhiteElo "2578"]
[BlackElo "1966"]
[Result "1/2-1/2"]
[Round "11"]
[TimeControl "180+2"]
[Date "2023.01.17"]
[WhiteClock "0:00:49"]
[BlackClock "0:01:11"]

1. d4 {[%clk 0:03:00]}  Nf6 {[%clk 0:02:58]} 2. c4 {[%clk 0:03:00]}  e6 {[%clk 0:02:58]} 3. Nc3 {[%clk 0:03:00]}  Bb4 {[%clk 0:02:58]} 4. Bd2 {[%clk 0:03:00]}  O-O {[%clk 0:02:58]} 5. Rc1 {[%clk 0:03:00]}  d5 {[%clk 0:02:58]} 6. e3 {[%clk 0:02:59]}  c6 {[%clk 0:02:54]} 7. Nf3 {[%clk 0:02:59]}  Nbd7 {[%clk 0:02:54]} 8. a3 {[%clk 0:02:58]}  Be7 {[%clk 0:02:54]} 9. Bd3 {[%clk 0:02:57]}  dxc4 {[%clk 0:02:54]} 10. Bxc4 {[%clk 0:02:58]}  b5 {[%clk 0:02:54]} 11. Bd3 {[%clk 0:02:58]}  Bb7 {[%clk 0:02:54]} 12. O-O {[%clk 0:02:58]}  a6 {[%clk 0:02:55]} 13. e4 {[%clk 0:02:58]}  c5 {[%clk 0:02:49]} 14. e5 {[%clk 0:02:58]}  Nd5 {[%clk 0:02:45]} 15. Nxd5 {[%clk 0:02:50]}  Bxd5 {[%clk 0:02:44]} 16. dxc5 {[%clk 0:02:44]}  Nxc5 {[%clk 0:02:43]} 17. Rxc5 {[%clk 0:02:19]}  Bxf3 {[%clk 0:02:34]} 18. Qxf3 {[%clk 0:01:56]}  Bxc5 {[%clk 0:02:34]} 19. Qe4 {[%clk 0:01:50]}  g6 {[%clk 0:02:30]} 20. Bh6 {[%clk 0:01:49]}  Qd4 {[%clk 0:02:15]} 21. Qf3 {[%clk 0:01:47]}  Qxe5 {[%clk 0:02:10]} 22. Bxf8 {[%clk 0:01:43]}  Rxf8 {[%clk 0:02:09]} 23. b4 {[%clk 0:01:42]}  Bd6 {[%clk 0:02:03]} 24. g3 {[%clk 0:01:43]}  Qc3 {[%clk 0:01:55]} 25. Be2 {[%clk 0:01:37]}  Rc8 {[%clk 0:01:42]} 26. Qb7 {[%clk 0:01:36]}  Qc6 {[%clk 0:01:42]} 27. Bf3 {[%clk 0:01:33]}  Qxb7 {[%clk 0:01:41]} 28. Bxb7 {[%clk 0:01:33]}  Rc3 {[%clk 0:01:41]} 29. Ra1 {[%clk 0:01:20]}  Be5 {[%clk 0:01:35]} 30. Ra2 {[%clk 0:01:10]}  Rc1+ {[%clk 0:01:22]} 31. Kg2 {[%clk 0:01:09]}  Ra1 {[%clk 0:01:23]} 32. Rxa1 {[%clk 0:01:08]}  Bxa1 {[%clk 0:01:22]} 33. Bxa6 {[%clk 0:01:08]}  Bb2 {[%clk 0:01:23]} 34. Bxb5 {[%clk 0:01:08]}  Bxa3 {[%clk 0:01:23]} 35. f4 {[%clk 0:01:04]}  Bxb4 {[%clk 0:01:23]} 36. Kf3 {[%clk 0:01:04]}  Kg7 {[%clk 0:01:20]} 37. g4 {[%clk 0:01:02]}  Bc5 {[%clk 0:01:15]} 38. h3 {[%clk 0:01:02]}  h6 {[%clk 0:01:16]} 39. Bc4 {[%clk 0:01:01]}  Kf6 {[%clk 0:01:15]} 40. h4 {[%clk 0:00:58]}  g5 {[%clk 0:01:13]} 41. fxg5+ {[%clk 0:00:53]}  hxg5 {[%clk 0:01:13]} 42. hxg5+ {[%clk 0:00:53]}  Kxg5 {[%clk 0:01:12]} 43. Bd3 {[%clk 0:00:52]}  Bd6 {[%clk 0:01:12]} 44. Bc2 {[%clk 0:00:51]}  f5 {[%clk 0:01:11]} 45. gxf5 {[%clk 0:00:50]}  exf5 {[%clk 0:01:11]} 46. Bxf5 {[%clk 0:00:49]} 1/2-1/2


[Site "https://www.chess.com"]

[Event "Titled Tuesday Blitz January 17 Early 2023"]
[White "Ahmad, Al Khatib"]
[Black "Golubev, Mikhail"]
[WhiteFideId "8103178"]
[BlackFideId "14100983"]
[WhiteElo "2344"]
[BlackElo "2461"]
[Result "1/2-1/2"]
[Round "11"]
[TimeControl "180+2"]
[Date "2023.01.17"]
[WhiteClock "0:00:12"]
[BlackClock "0:00:08"]

1. Nf3 {[%clk 0:03:00]}  d6 {[%clk 0:02:59]} 2. d4 {[%clk 0:03:00]}  Nf6 {[%clk 0:02:59]} 3. Nc3 {[%clk 0:02:59]}  g6 {[%clk 0:02:59]} 4. e4 {[%clk 0:03:00]}  Bg7 {[%clk 0:02:59]} 5. h3 {[%clk 0:03:00]}  O-O {[%clk 0:02:59]} 6. Be3 {[%clk 0:03:00]}  a6 {[%clk 0:02:54]} 7. a4 {[%clk 0:03:00]}  Nc6 {[%clk 0:02:50]} 8. a5 {[%clk 0:03:00]}  e5 {[%clk 0:02:47]} 9. dxe5 {[%clk 0:02:59]}  Nxe5 {[%clk 0:02:41]} 10. Nxe5 {[%clk 0:02:56]}  dxe5 {[%clk 0:02:42]} 11. Qxd8 {[%clk 0:02:55]}  Rxd8 {[%clk 0:02:42]} 12. f3 {[%clk 0:02:31]}  Be6 {[%clk 0:02:39]} 13. Na4 {[%clk 0:02:10]}  Nh5 {[%clk 0:02:26]} 14. Kf2 {[%clk 0:01:58]}  f5 {[%clk 0:02:16]} 15. Nc5 {[%clk 0:01:44]}  Bf7 {[%clk 0:02:15]} 16. Bd3 {[%clk 0:01:21]}  Nf4 {[%clk 0:02:06]} 17. Bf1 {[%clk 0:00:43]}  Ne6 {[%clk 0:01:48]} 18. Nxe6 {[%clk 0:00:36]}  Bxe6 {[%clk 0:01:49]} 19. Bd3 {[%clk 0:00:34]}  f4 {[%clk 0:01:46]} 20. Bd2 {[%clk 0:00:34]}  Bf8 {[%clk 0:01:39]} 21. Bc3 {[%clk 0:00:31]}  Bc5+ {[%clk 0:01:37]} 22. Ke2 {[%clk 0:00:31]}  Bd4 {[%clk 0:01:37]} 23. Bxd4 {[%clk 0:00:29]}  Rxd4 {[%clk 0:01:36]} 24. Rhd1 {[%clk 0:00:28]}  Rad8 {[%clk 0:01:32]} 25. Ke1 {[%clk 0:00:23]}  Kf7 {[%clk 0:01:27]} 26. Be2 {[%clk 0:00:22]}  Kf6 {[%clk 0:01:23]} 27. c3 {[%clk 0:00:22]}  R4d6 {[%clk 0:01:18]} 28. Rxd6 {[%clk 0:00:21]}  cxd6 {[%clk 0:01:18]} 29. Ra4 {[%clk 0:00:18]}  Ke7 {[%clk 0:01:06]} 30. Rb4 {[%clk 0:00:19]}  Rd7 {[%clk 0:01:06]} 31. Kd2 {[%clk 0:00:19]}  d5 {[%clk 0:01:05]} 32. exd5 {[%clk 0:00:16]}  Bxd5 {[%clk 0:01:05]} 33. Kc2 {[%clk 0:00:16]}  Bc6 {[%clk 0:01:01]} 34. Bd3 {[%clk 0:00:15]}  Kf6 {[%clk 0:00:43]} 35. Be4 {[%clk 0:00:15]}  Bxe4+ {[%clk 0:00:41]} 36. Rxe4 {[%clk 0:00:15]}  Rd5 {[%clk 0:00:35]} 37. Rb4 {[%clk 0:00:15]}  Rxa5 {[%clk 0:00:33]} 38. Rxb7 {[%clk 0:00:15]}  h6 {[%clk 0:00:22]} 39. Kb1 {[%clk 0:00:15]}  Kg5 {[%clk 0:00:21]} 40. b4 {[%clk 0:00:14]}  Rd5 {[%clk 0:00:20]} 41. Kc2 {[%clk 0:00:13]}  Kh4 {[%clk 0:00:20]} 42. Rb6 {[%clk 0:00:13]}  g5 {[%clk 0:00:18]} 43. Rxa6 {[%clk 0:00:12]}  Kg3 {[%clk 0:00:18]} 44. c4 {[%clk 0:00:11]}  Rd4 {[%clk 0:00:18]} 45. Kc3 {[%clk 0:00:11]}  Kxg2 {[%clk 0:00:16]} 46. c5 {[%clk 0:00:11]}  Rd1 {[%clk 0:00:13]} 47. Kc2 {[%clk 0:00:11]}  Rd4 {[%clk 0:00:10]} 48. Kb3 {[%clk 0:00:11]}  e4 {[%clk 0:00:09]} 49. fxe4 {[%clk 0:00:10]}  f3 {[%clk 0:00:09]} 50. c6 {[%clk 0:00:08]}  f2 {[%clk 0:00:09]} 51. Ra2 {[%clk 0:00:09]}  Rxe4 {[%clk 0:00:06]} 52. b5 {[%clk 0:00:07]}  Re3+ {[%clk 0:00:05]} 53. Kc4 {[%clk 0:00:07]}  Re4+ {[%clk 0:00:05]} 54. Kc5 {[%clk 0:00:06]}  Re5+ {[%clk 0:00:04]} 55. Kb6 {[%clk 0:00:07]}  Kg3 {[%clk 0:00:05]} 56. Rxf2 {[%clk 0:00:06]}  Kxf2 {[%clk 0:00:05]} 57. c7 {[%clk 0:00:07]}  Re8 {[%clk 0:00:05]} 58. Kb7 {[%clk 0:00:07]}  h5 {[%clk 0:00:06]} 59. c8=Q {[%clk 0:00:07]}  Rxc8 {[%clk 0:00:06]} 60. Kxc8 {[%clk 0:00:08]}  g4 {[%clk 0:00:07]} 61. hxg4 {[%clk 0:00:08]}  hxg4 {[%clk 0:00:07]} 62. b6 {[%clk 0:00:09]}  g3 {[%clk 0:00:07]} 63. b7 {[%clk 0:00:10]}  g2 {[%clk 0:00:08]} 64. b8=Q {[%clk 0:00:10]}  g1=Q {[%clk 0:00:08]} 65. Qf4+ {[%clk 0:00:11]}  Kg2 {[%clk 0:00:08]} 66. Qg4+ {[%clk 0:00:11]}  Kf1 {[%clk 0:00:08]} 67. Qf3+ {[%clk 0:00:11]}  Qf2 {[%clk 0:00:08]} 68. Qxf2+ {[%clk 0:00:12]}  Kxf2 {[%clk 0:00:08]} 1/2-1/2


[Site "https://www.chess.com"]

[Event "Titled Tuesday Blitz January 17 Early 2023"]
[White "Papayan, Oleg"]
[Black "Fiorito, Francisco"]
[WhiteFideId "4193911"]
[BlackFideId "180165"]
[WhiteElo "2253"]
[BlackElo "2305"]
[Result "1-0"]
[Round "11"]
[TimeControl "180+2"]
[Date "2023.01.17"]
[WhiteClock "0:01:17"]
[BlackClock "0:01:48"]

1. e4 {[%clk 0:03:00]}  c5 {[%clk 0:02:59]} 2. Nf3 {[%clk 0:03:00]}  Nc6 {[%clk 0:03:00]} 3. Bb5 {[%clk 0:03:00]}  g6 {[%clk 0:03:00]} 4. Bxc6 {[%clk 0:02:58]}  dxc6 {[%clk 0:03:01]} 5. d3 {[%clk 0:02:56]}  Bg7 {[%clk 0:03:01]} 6. h3 {[%clk 0:02:57]}  Qc7 {[%clk 0:03:01]} 7. Nc3 {[%clk 0:02:56]}  e5 {[%clk 0:03:01]} 8. Be3 {[%clk 0:02:56]}  b6 {[%clk 0:03:01]} 9. Qd2 {[%clk 0:02:57]}  Nf6 {[%clk 0:03:01]} 10. Bh6 {[%clk 0:02:56]}  O-O {[%clk 0:03:00]} 11. Bxg7 {[%clk 0:02:56]}  Kxg7 {[%clk 0:03:01]} 12. a3 {[%clk 0:02:55]}  h6 {[%clk 0:02:56]} 13. b4 {[%clk 0:02:54]}  cxb4 {[%clk 0:02:56]} 14. axb4 {[%clk 0:02:54]}  Be6 {[%clk 0:02:57]} 15. O-O {[%clk 0:02:52]}  Rfd8 {[%clk 0:02:55]} 16. Rfb1 {[%clk 0:02:42]}  Nh5 {[%clk 0:02:48]} 17. Ne2 {[%clk 0:02:28]}  g5 {[%clk 0:02:40]} 18. Nxg5 {[%clk 0:02:22]}  Nf6 {[%clk 0:02:22]} 19. Nf3 {[%clk 0:02:20]}  Kh7 {[%clk 0:02:20]} 20. Ng3 {[%clk 0:02:15]}  Rg8 {[%clk 0:02:20]} 21. Qc3 {[%clk 0:02:11]}  Nd7 {[%clk 0:02:20]} 22. d4 {[%clk 0:02:04]}  Rg6 {[%clk 0:02:04]} 23. d5 {[%clk 0:02:00]}  Bxh3 {[%clk 0:02:00]} 24. gxh3 {[%clk 0:02:01]}  h5 {[%clk 0:02:00]} 25. Kh2 {[%clk 0:01:57]}  Rag8 {[%clk 0:01:59]} 26. Rg1 {[%clk 0:01:52]}  Qd8 {[%clk 0:01:54]} 27. dxc6 {[%clk 0:01:51]}  Nf6 {[%clk 0:01:53]} 28. Rxa7 {[%clk 0:01:45]}  h4 {[%clk 0:01:50]} 29. Rxf7+ {[%clk 0:01:37]}  R8g7 {[%clk 0:01:48]} 30. Rxg7+ {[%clk 0:01:34]}  Rxg7 {[%clk 0:01:49]} 31. Nf5 {[%clk 0:01:23]}  Rxg1 {[%clk 0:01:48]} 32. Nxg1 {[%clk 0:01:17]} 1-0


[Site "https://www.chess.com"]

[Event "Titled Tuesday Blitz January 17 Early 2023"]
[White "Dinu, Dumitru-Daniel"]
[Black "Vivas Zamora, Fabian Ernesto"]
[WhiteFideId "1208403"]
[BlackFideId "3902480"]
[WhiteElo "2203"]
[BlackElo "2346"]
[Result "1-0"]
[Round "11"]
[TimeControl "180+2"]
[Date "2023.01.17"]
[WhiteClock "0:00:06"]
[BlackClock "0:00:01"]

1. e4 {[%clk 0:03:00]}  e5 {[%clk 0:02:57]} 2. Nf3 {[%clk 0:03:00]}  Nc6 {[%clk 0:02:56]} 3. Bb5 {[%clk 0:02:59]}  f5 {[%clk 0:02:55]} 4. d3 {[%clk 0:02:54]}  fxe4 {[%clk 0:02:55]} 5. dxe4 {[%clk 0:02:54]}  Nf6 {[%clk 0:02:56]} 6. Nc3 {[%clk 0:02:53]}  Bb4 {[%clk 0:02:55]} 7. O-O {[%clk 0:02:48]}  Bxc3 {[%clk 0:02:55]} 8. bxc3 {[%clk 0:02:48]}  d6 {[%clk 0:02:50]} 9. Bg5 {[%clk 0:02:44]}  O-O {[%clk 0:02:48]} 10. c4 {[%clk 0:02:37]}  Qe8 {[%clk 0:02:39]} 11. h3 {[%clk 0:02:26]}  Kh8 {[%clk 0:02:28]} 12. Bxf6 {[%clk 0:02:24]}  Rxf6 {[%clk 0:02:29]} 13. c5 {[%clk 0:02:24]}  Qg6 {[%clk 0:01:28]} 14. Bxc6 {[%clk 0:02:13]}  bxc6 {[%clk 0:00:50]} 15. Nxe5 {[%clk 0:01:59]}  Qxe4 {[%clk 0:00:48]} 16. Re1 {[%clk 0:01:18]}  Qf5 {[%clk 0:00:47]} 17. Ng4 {[%clk 0:01:18]}  Re6 {[%clk 0:00:17]} 18. cxd6 {[%clk 0:01:09]}  cxd6 {[%clk 0:00:16]} 19. Qxd6 {[%clk 0:00:50]}  h5 {[%clk 0:00:16]} 20. Qd8+ {[%clk 0:00:42]}  Kh7 {[%clk 0:00:13]} 21. Ne3 {[%clk 0:00:27]}  Qg6 {[%clk 0:00:12]} 22. Qd3 {[%clk 0:00:22]}  c5 {[%clk 0:00:09]} 23. Rad1 {[%clk 0:00:19]}  Bb7 {[%clk 0:00:09]} 24. Qxg6+ {[%clk 0:00:19]}  Rxg6 {[%clk 0:00:09]} 25. g3 {[%clk 0:00:18]}  Re8 {[%clk 0:00:06]} 26. Rd7 {[%clk 0:00:17]}  Rb6 {[%clk 0:00:01]} 27. Kf1 {[%clk 0:00:13]}  Bf3 {[%clk 0:00:01]} 28. Rxa7 {[%clk 0:00:12]}  Rb2 {[%clk 0:00:01]} 29. Rc7 {[%clk 0:00:10]}  h4 {[%clk 0:00:01]} 30. gxh4 {[%clk 0:00:06]} 1-0


[Site "https://www.chess.com"]

[Event "Titled Tuesday Blitz January 17 Early 2023"]
[White "Tarasova, Viktoriya"]
[Black "Santos Flores, Alberto"]
[WhiteFideId "4175840"]
[BlackFideId "3601234"]
[WhiteElo "2226"]
[BlackElo "2164"]
[Result "0-1"]
[Round "11"]
[TimeControl "180+2"]
[Date "2023.01.17"]
[WhiteClock "0:00:06"]
[BlackClock "0:00:12"]

1. d4 {[%clk 0:03:00]}  d5 {[%clk 0:02:59]} 2. c4 {[%clk 0:03:00]}  c6 {[%clk 0:03:00]} 3. Nf3 {[%clk 0:03:01]}  Nf6 {[%clk 0:02:59]} 4. Nc3 {[%clk 0:03:01]}  dxc4 {[%clk 0:03:00]} 5. a4 {[%clk 0:03:00]}  Bf5 {[%clk 0:03:00]} 6. Ne5 {[%clk 0:03:01]}  e6 {[%clk 0:03:00]} 7. f3 {[%clk 0:02:59]}  Bb4 {[%clk 0:03:01]} 8. Nxc4 {[%clk 0:02:48]}  O-O {[%clk 0:02:57]} 9. Kf2 {[%clk 0:02:48]}  c5 {[%clk 0:02:45]} 10. Na2 {[%clk 0:02:40]}  Nc6 {[%clk 0:02:35]} 11. Nxb4 {[%clk 0:02:26]}  Nxb4 {[%clk 0:02:35]} 12. e4 {[%clk 0:02:20]}  Bxe4 {[%clk 0:01:35]} 13. fxe4 {[%clk 0:02:12]}  Nxe4+ {[%clk 0:01:36]} 14. Kg1 {[%clk 0:02:03]}  cxd4 {[%clk 0:01:15]} 15. Bd3 {[%clk 0:01:53]}  Nxd3 {[%clk 0:01:11]} 16. Qxd3 {[%clk 0:01:52]}  Nc5 {[%clk 0:01:08]} 17. Qd1 {[%clk 0:01:46]}  Rc8 {[%clk 0:01:05]} 18. Bf4 {[%clk 0:01:37]}  Qd5 {[%clk 0:00:54]} 19. Rc1 {[%clk 0:01:20]}  f6 {[%clk 0:00:45]} 20. Bd6 {[%clk 0:01:02]}  Rfd8 {[%clk 0:00:44]} 21. Bxc5 {[%clk 0:01:00]}  Rxc5 {[%clk 0:00:44]} 22. Qd3 {[%clk 0:00:46]}  a6 {[%clk 0:00:35]} 23. a5 {[%clk 0:00:42]}  Rdc8 {[%clk 0:00:34]} 24. b3 {[%clk 0:00:42]}  Rxa5 {[%clk 0:00:34]} 25. Rd1 {[%clk 0:00:32]}  Rac5 {[%clk 0:00:32]} 26. Qxd4 {[%clk 0:00:20]}  Qxd4+ {[%clk 0:00:31]} 27. Rxd4 {[%clk 0:00:20]}  b5 {[%clk 0:00:30]} 28. Nd2 {[%clk 0:00:18]}  Rc1+ {[%clk 0:00:27]} 29. Nf1 {[%clk 0:00:17]}  R8c2 {[%clk 0:00:24]} 30. h3 {[%clk 0:00:14]}  Rb2 {[%clk 0:00:21]} 31. Kh2 {[%clk 0:00:07]}  Rxb3 {[%clk 0:00:19]} 32. Ng3 {[%clk 0:00:05]}  Rxh1+ {[%clk 0:00:19]} 33. Nxh1 {[%clk 0:00:06]}  a5 {[%clk 0:00:19]} 34. Rd7 {[%clk 0:00:07]}  a4 {[%clk 0:00:18]} 35. Ra7 {[%clk 0:00:06]}  a3 {[%clk 0:00:18]} 36. Ng3 {[%clk 0:00:07]}  b4 {[%clk 0:00:19]} 37. Ne4 {[%clk 0:00:07]}  Rb2 {[%clk 0:00:18]} 38. Nd6 {[%clk 0:00:08]}  h5 {[%clk 0:00:18]} 39. h4 {[%clk 0:00:07]}  a2 {[%clk 0:00:18]} 40. Ne8 {[%clk 0:00:07]}  b3 {[%clk 0:00:13]} 41. Nxg7 {[%clk 0:00:07]}  Rb1 {[%clk 0:00:13]} 42. Nxh5 {[%clk 0:00:05]}  a1=Q {[%clk 0:00:12]} 43. Nxf6+ {[%clk 0:00:06]}  Qxf6 {[%clk 0:00:12]} 0-1


[Site "https://www.chess.com"]

[Event "Titled Tuesday Blitz January 17 Early 2023"]
[White "Lehtosaari, Mauri"]
[Black "Rios Escobar, Adan"]
[WhiteFideId "501999"]
[BlackFideId "3403645"]
[WhiteElo "2176"]
[BlackElo "2234"]
[Result "1-0"]
[Round "11"]
[TimeControl "180+2"]
[Date "2023.01.17"]
[WhiteClock "0:00:15"]
[BlackClock "0:00:38"]

1. Nf3 {[%clk 0:03:00]}  Nf6 {[%clk 0:03:00]} 2. c4 {[%clk 0:03:01]}  g6 {[%clk 0:02:59]} 3. Nc3 {[%clk 0:03:01]}  Bg7 {[%clk 0:03:00]} 4. e4 {[%clk 0:03:01]}  d6 {[%clk 0:03:00]} 5. d4 {[%clk 0:03:00]}  O-O {[%clk 0:03:01]} 6. Be2 {[%clk 0:03:01]}  Na6 {[%clk 0:03:01]} 7. O-O {[%clk 0:02:59]}  e5 {[%clk 0:03:02]} 8. Be3 {[%clk 0:02:55]}  Qe7 {[%clk 0:03:00]} 9. dxe5 {[%clk 0:02:48]}  dxe5 {[%clk 0:03:00]} 10. h3 {[%clk 0:02:43]}  c6 {[%clk 0:02:53]} 11. Qc1 {[%clk 0:02:22]}  Nh5 {[%clk 0:02:50]} 12. a3 {[%clk 0:02:17]}  Be6 {[%clk 0:02:42]} 13. b4 {[%clk 0:02:14]}  f5 {[%clk 0:02:37]} 14. exf5 {[%clk 0:02:05]}  gxf5 {[%clk 0:02:35]} 15. Nxe5 {[%clk 0:01:24]}  f4 {[%clk 0:02:32]} 16. Bd4 {[%clk 0:01:23]}  Bxe5 {[%clk 0:02:16]} 17. Bxe5 {[%clk 0:01:22]}  f3 {[%clk 0:02:17]} 18. Bxf3 {[%clk 0:00:53]}  Rxf3 {[%clk 0:02:15]} 19. gxf3 {[%clk 0:00:36]}  Qh4 {[%clk 0:02:12]} 20. Qh6 {[%clk 0:00:28]}  Bf5 {[%clk 0:01:00]} 21. Rae1 {[%clk 0:00:20]}  Kf7 {[%clk 0:00:59]} 22. Bg3 {[%clk 0:00:16]}  Nxg3 {[%clk 0:00:56]} 23. Qxh4 {[%clk 0:00:16]}  Nxf1 {[%clk 0:00:56]} 24. Rxf1 {[%clk 0:00:15]}  Rg8+ {[%clk 0:00:57]} 25. Kh2 {[%clk 0:00:15]}  Nc7 {[%clk 0:00:53]} 26. Rg1 {[%clk 0:00:15]}  Ne6 {[%clk 0:00:39]} 27. Rxg8 {[%clk 0:00:14]}  Kxg8 {[%clk 0:00:40]} 28. Ne4 {[%clk 0:00:14]}  Bxe4 {[%clk 0:00:37]} 29. fxe4 {[%clk 0:00:14]}  Nd4 {[%clk 0:00:38]} 30. Qd8+ {[%clk 0:00:14]}  Kf7 {[%clk 0:00:38]} 31. Qxd4 {[%clk 0:00:15]} 1-0


[Site "https://www.chess.com"]

[Event "Titled Tuesday Blitz January 17 Early 2023"]
[White "Alfaro, William"]
[Black "Domingo Nunez, Ruben"]
[WhiteFideId "6100457"]
[BlackFideId "22245570"]
[WhiteElo "2134"]
[BlackElo "2416"]
[Result "0-1"]
[Round "11"]
[TimeControl "180+2"]
[Date "2023.01.17"]
[WhiteClock "0:02:00"]
[BlackClock "0:02:29"]

1. Nf3 {[%clk 0:03:00]}  b5 {[%clk 0:02:53]} 2. c4 {[%clk 0:02:58]}  Bb7 {[%clk 0:02:53]} 3. cxb5 {[%clk 0:02:57]}  Nf6 {[%clk 0:02:53]} 4. e3 {[%clk 0:02:57]}  d6 {[%clk 0:02:53]} 5. d4 {[%clk 0:02:57]}  Rg8 {[%clk 0:02:52]} 6. Nc3 {[%clk 0:02:55]}  g5 {[%clk 0:02:52]} 7. b4 {[%clk 0:02:48]}  g4 {[%clk 0:02:53]} 8. Nd2 {[%clk 0:02:47]}  e5 {[%clk 0:02:52]} 9. Nb3 {[%clk 0:02:45]}  exd4 {[%clk 0:02:46]} 10. Qxd4 {[%clk 0:02:45]}  Bg7 {[%clk 0:02:44]} 11. Bb2 {[%clk 0:02:37]}  Nbd7 {[%clk 0:02:41]} 12. Bc4 {[%clk 0:02:30]}  Ne4 {[%clk 0:02:34]} 13. Qd3 {[%clk 0:02:21]}  Ne5 {[%clk 0:02:33]} 14. Qe2 {[%clk 0:02:13]}  Nxc3 {[%clk 0:02:28]} 15. Bxc3 {[%clk 0:02:12]}  Bxg2 {[%clk 0:02:28]} 16. Rg1 {[%clk 0:02:03]}  Nf3+ {[%clk 0:02:27]} 17. Kd1 {[%clk 0:02:03]}  Nxg1 {[%clk 0:02:27]} 18. Qxg4 {[%clk 0:02:01]}  Bf3+ {[%clk 0:02:28]} 19. Qxf3 {[%clk 0:02:00]}  Nxf3 {[%clk 0:02:29]} 0-1


[Site "https://www.chess.com"]

[Event "Titled Tuesday Blitz January 17 Early 2023"]
[White "Belozerov, Andrei"]
[Black "Degenbaev, Aziz"]
[WhiteFideId "4120213"]
[BlackFideId "13802640"]
[WhiteElo "2461"]
[BlackElo "2203"]
[Result "1-0"]
[Round "11"]
[TimeControl "180+2"]
[Date "2023.01.17"]
[WhiteClock "0:00:10"]
[BlackClock "0:00:13"]

1. d4 {[%clk 0:03:00]}  Nf6 {[%clk 0:02:59]} 2. c4 {[%clk 0:02:59]}  g6 {[%clk 0:03:00]} 3. g3 {[%clk 0:02:58]}  Bg7 {[%clk 0:03:00]} 4. Bg2 {[%clk 0:02:58]}  O-O {[%clk 0:03:01]} 5. Nc3 {[%clk 0:02:57]}  d6 {[%clk 0:03:01]} 6. e3 {[%clk 0:02:55]}  c5 {[%clk 0:02:38]} 7. Nge2 {[%clk 0:02:55]}  Nc6 {[%clk 0:02:20]} 8. O-O {[%clk 0:02:51]}  Rb8 {[%clk 0:02:03]} 9. b3 {[%clk 0:02:50]}  a6 {[%clk 0:02:04]} 10. Bb2 {[%clk 0:02:35]}  cxd4 {[%clk 0:02:04]} 11. exd4 {[%clk 0:02:21]}  Bf5 {[%clk 0:02:00]} 12. d5 {[%clk 0:02:19]}  Ne5 {[%clk 0:01:45]} 13. Nd4 {[%clk 0:02:19]}  Qc8 {[%clk 0:01:36]} 14. Nxf5 {[%clk 0:02:00]}  Qxf5 {[%clk 0:01:37]} 15. Qe2 {[%clk 0:01:46]}  Rfe8 {[%clk 0:01:26]} 16. Rad1 {[%clk 0:01:44]}  Ned7 {[%clk 0:01:01]} 17. Rfe1 {[%clk 0:01:39]}  h5 {[%clk 0:00:51]} 18. h3 {[%clk 0:01:38]}  Nh7 {[%clk 0:00:36]} 19. Ne4 {[%clk 0:01:35]}  Bxb2 {[%clk 0:00:34]} 20. Qxb2 {[%clk 0:01:35]}  b5 {[%clk 0:00:34]} 21. cxb5 {[%clk 0:01:27]}  axb5 {[%clk 0:00:35]} 22. Rc1 {[%clk 0:01:24]}  Ne5 {[%clk 0:00:33]} 23. Qe2 {[%clk 0:01:18]}  h4 {[%clk 0:00:20]} 24. g4 {[%clk 0:01:10]}  Qf4 {[%clk 0:00:20]} 25. Qe3 {[%clk 0:01:10]}  Qxe3 {[%clk 0:00:19]} 26. Rxe3 {[%clk 0:01:11]}  f5 {[%clk 0:00:17]} 27. f4 {[%clk 0:00:52]}  Nd7 {[%clk 0:00:16]} 28. Nd2 {[%clk 0:00:46]}  Nhf6 {[%clk 0:00:15]} 29. Bf3 {[%clk 0:00:31]}  Nc5 {[%clk 0:00:08]} 30. b4 {[%clk 0:00:29]}  Na6 {[%clk 0:00:05]} 31. a3 {[%clk 0:00:27]}  Rbc8 {[%clk 0:00:02]} 32. Rxc8 {[%clk 0:00:25]}  Rxc8 {[%clk 0:00:03]} 33. Rxe7 {[%clk 0:00:25]}  Rc3 {[%clk 0:00:03]} 34. gxf5 {[%clk 0:00:23]}  gxf5 {[%clk 0:00:03]} 35. Re6 {[%clk 0:00:22]}  Kf7 {[%clk 0:00:02]} 36. Rxd6 {[%clk 0:00:22]}  Nc7 {[%clk 0:00:03]} 37. Rc6 {[%clk 0:00:20]}  Ncxd5 {[%clk 0:00:03]} 38. Rxc3 {[%clk 0:00:17]}  Nxc3 {[%clk 0:00:04]} 39. Kf2 {[%clk 0:00:16]}  Nfd5 {[%clk 0:00:03]} 40. Bxd5+ {[%clk 0:00:13]}  Nxd5 {[%clk 0:00:04]} 41. Kf3 {[%clk 0:00:12]}  Nc3 {[%clk 0:00:05]} 42. Ke3 {[%clk 0:00:11]}  Ke6 {[%clk 0:00:05]} 43. Kd4 {[%clk 0:00:11]}  Nd5 {[%clk 0:00:05]} 44. Kc5 {[%clk 0:00:12]}  Nxf4 {[%clk 0:00:05]} 45. Kxb5 {[%clk 0:00:11]}  Nxh3 {[%clk 0:00:05]} 46. a4 {[%clk 0:00:11]}  Nf4 {[%clk 0:00:04]} 47. a5 {[%clk 0:00:11]}  Nd5 {[%clk 0:00:03]} 48. a6 {[%clk 0:00:12]}  h3 {[%clk 0:00:03]} 49. Nf1 {[%clk 0:00:10]}  Kd7 {[%clk 0:00:02]} 50. a7 {[%clk 0:00:10]}  Nc7+ {[%clk 0:00:01]} 51. Kb6 {[%clk 0:00:11]}  Kc8 {[%clk 0:00:02]} 52. b5 {[%clk 0:00:11]}  f4 {[%clk 0:00:02]} 53. Nh2 {[%clk 0:00:09]}  Kd7 {[%clk 0:00:01]} 54. Kb7 {[%clk 0:00:09]}  Na8 {[%clk 0:00:01]} 55. Kxa8 {[%clk 0:00:08]}  Kc7 {[%clk 0:00:02]} 56. b6+ {[%clk 0:00:09]}  Kxb6 {[%clk 0:00:02]} 57. Kb8 {[%clk 0:00:09]}  Kc5 {[%clk 0:00:03]} 58. a8=Q {[%clk 0:00:09]}  Kd4 {[%clk 0:00:04]} 59. Qf3 {[%clk 0:00:10]}  Ke5 {[%clk 0:00:04]} 60. Ng4+ {[%clk 0:00:09]}  Kf5 {[%clk 0:00:05]} 61. Nf2 {[%clk 0:00:10]}  Ke5 {[%clk 0:00:06]} 62. Qxh3 {[%clk 0:00:10]}  Kd6 {[%clk 0:00:07]} 63. Qf3 {[%clk 0:00:09]}  Kc5 {[%clk 0:00:07]} 64. Qe4 {[%clk 0:00:10]}  Kb6 {[%clk 0:00:08]} 65. Nd3 {[%clk 0:00:10]}  Ka5 {[%clk 0:00:09]} 66. Qd5+ {[%clk 0:00:09]}  Ka6 {[%clk 0:00:10]} 67. Qb7+ {[%clk 0:00:09]}  Ka5 {[%clk 0:00:10]} 68. Nb2 {[%clk 0:00:09]}  f3 {[%clk 0:00:11]} 69. Nc4+ {[%clk 0:00:08]}  Ka4 {[%clk 0:00:11]} 70. Nd2 {[%clk 0:00:09]}  f2 {[%clk 0:00:12]} 71. Qb3+ {[%clk 0:00:09]}  Ka5 {[%clk 0:00:12]} 72. Nc4+ {[%clk 0:00:09]}  Ka6 {[%clk 0:00:13]} 73. Qb6# {[%clk 0:00:10]} 1-0


[Site "https://www.chess.com"]